bitfinex-derivatives/quotes_ETHF0:USTF0_20260119
["timestamp","ask_amount","ask_price","bid_price","bid_amount"]
[1768846220925,0.00357685,3216.5,3215.4,0.1357455]
[1768846221131,0.94281098,3216.4,3215.4,0.1357455]
[1768846221331,0.00357685,3216.5,3215.4,0.1357455]
[1768846221532,0.94287273,3216.4,3215.4,0.1357455]
[1768846221831,0.00357685,3216.5,3215.4,0.1357455]
[1768846222031,0.94287432,3216.4,3215.4,0.1357455]
[1768846222331,0.00357685,3216.5,3215.4,0.1357455]
[1768846222532,0.94294608,3216.4,3215.4,0.1357455]
[1768846222742,0.00357685,3216.5,3215.4,0.1357455]
[1768846222927,0.94294055,3216.4,3215.4,0.1357455]
[1768846223130,0.00357685,3216.5,3215.4,0.1357455]
[1768846223332,0.94298201,3216.4,3215.4,0.1357455]
[1768846223534,0.00357685,3216.5,3215.4,0.1357455]
[1768846223735,0.94301239,3216.4,3215.4,0.1357455]
[1768846224032,0.00357685,3216.5,3215.4,0.1357455]
[1768846224234,0.9430122,3216.4,3215.4,0.1357455]
[1768846224433,0.00357685,3216.5,3215.4,0.1357455]
[1768846224641,0.94308804,3216.4,3215.4,0.1357455]
[1768846224940,0.00357685,3216.5,3215.4,0.1357455]
[1768846225136,0.9430893,3216.4,3215.4,0.1357455]
[1768846225335,0.00357685,3216.5,3215.4,0.1357455]
[1768846225542,0.9431716,3216.4,3215.4,0.1357455]
[1768846225840,0.00357685,3216.5,3215.4,0.1357455]
[1768846226042,0.94319185,3216.4,3215.4,0.1357455]
[1768846226242,1.73957685,3216.5,3215.4,0.1357455]
[1768846226539,0.94328421,3216.4,3215.4,0.1357455]
[1768846226740,1.73957685,3216.5,3215.4,0.1357455]
[1768846227040,0.9432845,3216.4,3215.4,0.1357455]
[1768846227341,0.00357685,3216.5,3215.4,0.1357455]
[1768846227541,0.94339324,3216.4,3215.4,0.1357455]
[1768846227742,0.00357685,3216.5,3215.4,0.1357455]
[1768846227942,0.94339143,3216.4,3215.4,0.1357455]
[1768846228142,0.00357685,3216.5,3215.4,0.1357455]
[1768846228345,0.94350688,3216.4,3215.4,0.1357455]
[1768846228544,0.00357685,3216.5,3215.4,0.1357455]
[1768846228744,0.94350688,3216.4,3215.4,0.1357455]
[1768846228946,0.00357685,3216.5,3215.4,0.1357455]
[1768846229137,0.94350483,3216.4,3215.4,0.1357455]
[1768846229335,0.94350483,3216.3,3215.4,0.1357455]
[1768846229635,0.00357685,3216.5,3215.4,0.1357455]
[1768846229930,0.9435689,3216.4,3215.4,0.1357455]
[1768846230135,0.9435689,3216.3,3215.4,0.1357455]
[1768846230335,0.00357685,3216.5,3215.4,0.1357455]
[1768846230542,0.94358581,3216.4,3215.4,0.1357455]
[1768846230745,0.94358581,3216.3,3215.4,0.1357455]
[1768846230943,0.00357685,3216.5,3215.4,0.1357455]
[1768846231243,0.9435866,3216.4,3215.4,0.1357455]
[1768846231439,0.00357685,3216.5,3215.4,0.1357455]
[1768846231742,0.94359743,3216.4,3215.4,0.1357455]
[1768846231942,0.00357685,3216.5,3215.4,0.1357455]
[1768846232139,0.94359738,3216.4,3215.4,0.1357455]
[1768846232341,0.00357685,3216.5,3215.4,0.1357455]
[1768846232544,0.94361287,3216.4,3215.4,0.1357455]
[1768846232744,0.00357685,3216.5,3215.4,0.1357455]
[1768846233041,0.94361431,3216.4,3215.4,0.1357455]
[1768846233235,0.00357685,3216.5,3215.4,0.1357455]
[1768846233443,0.94362035,3216.4,3215.4,0.1357455]
[1768846233643,0.00357685,3216.5,3215.4,0.1357455]
[1768846233844,0.94361983,3216.4,3215.4,0.1357455]
[1768846234146,0.00357685,3216.5,3215.4,0.1357455]
[1768846234340,0.9436387,3216.4,3215.3,0.15559]
[1768846234644,0.9436387,3216.3,3215.4,0.13633946]
[1768846234846,0.9436387,3216.2,3215.4,0.13633946]
[1768846235145,0.00357685,3216.5,3215.4,0.13633946]
[1768846235346,0.94352253,3216.4,3215.4,0.13633946]
[1768846235544,0.94352253,3216.3,3215.4,0.13633946]
[1768846235745,0.00357685,3216.5,3215.4,0.13633946]
[1768846235746,0.94352253,3216.2,3215.4,0.13633946]
[1768846235948,0.00357685,3216.5,3215.4,0.13633946]
[1768846236147,0.94352314,3216.4,3215.4,0.13633946]
[1768846236347,0.94352314,3216.3,3215.4,0.13633946]
[1768846236541,0.00357685,3216.5,3215.4,0.13633946]
[1768846236742,0.9435183,3216.4,3215.4,0.13633946]
[1768846237042,0.9435183,3216.3,3215.4,0.13633946]
[1768846237243,0.00357685,3216.5,3215.4,0.13633946]
[1768846237546,0.94353549,3216.4,3215.4,0.13633946]
[1768846237848,0.94353549,3216.3,3215.4,0.13633946]
[1768846238039,0.00357685,3216.5,3215.4,0.13633946]
[1768846238339,0.94352089,3216.4,3215.4,0.13633946]
[1768846238539,0.94352089,3216.3,3215.4,0.13633946]
[1768846238740,0.00357685,3216.5,3215.4,0.13633946]
[1768846238941,0.94357516,3216.4,3215.4,0.13633946]
[1768846239145,0.94357516,3216.3,3215.4,0.13633946]
[1768846239345,0.00357685,3216.5,3215.4,0.13633946]
[1768846239546,0.94364254,3216.4,3215.4,0.13633946]
[1768846239747,0.94364254,3216.3,3215.4,0.13633946]
[1768846239948,0.00357685,3216.5,3215.4,0.13633946]
[1768846240149,0.9436399,3216.4,3215.4,0.13633946]
[1768846240349,0.9436399,3216.3,3215.4,0.13633946]
[1768846240652,0.00357685,3216.5,3215.4,0.13633946]
[1768846240835,0.94372102,3216.4,3215.4,0.13633946]
[1768846241038,0.94372102,3216.3,3215.4,0.13633946]
[1768846241235,0.00357685,3216.5,3215.4,0.29191946]
[1768846241453,0.9438102,3216.4,3215.6,0.142048]
[1768846241748,0.9438102,3216.3,3215.6,0.142048]
[1768846241947,0.00357685,3216.5,3215.6,0.142048]
[1768846242141,0.94380527,3216.4,3215.6,0.142048]
[1768846242341,0.94380527,3216.3,3215.6,0.142048]
[1768846242541,0.00357685,3216.5,3215.6,0.142048]
[1768846242741,0.94396956,3216.4,3215.6,0.142048]
[1768846242942,0.94396956,3216.3,3215.6,0.142048]
[1768846243251,0.00357685,3216.5,3215.6,0.142048]
[1768846243451,0.94415035,3216.4,3215.6,0.142048]
[1768846243645,0.94415035,3216.3,3215.6,0.142048]
[1768846243847,0.00357685,3216.5,3215.6,0.142048]
[1768846244143,0.9441494,3216.4,3215.6,0.142048]
[1768846244346,0.9441494,3216.3,3215.6,0.142048]
[1768846244654,0.00357685,3216.5,3215.6,0.142048]
[1768846244854,0.94445629,3216.4,3215.6,0.142048]
[1768846245054,0.00357685,3216.5,3215.6,0.142048]
[1768846245354,0.94445642,3216.4,3215.6,0.142048]
[1768846245649,0.00357685,3216.5,3215.6,0.142048]
[1768846245851,0.94439872,3216.4,3215.6,0.142048]
[1768846246050,0.00357685,3216.5,3215.6,0.142048]
[1768846246256,0.94439872,3216.4,3215.6,0.142048]
[1768846246552,0.94439872,3216.3,3215.6,0.142048]
[1768846246752,0.00357685,3216.5,3215.6,0.142048]
[1768846246954,0.94436833,3216.4,3215.6,0.142048]
[1768846247144,0.94436833,3216.3,3215.6,0.142048]
[1768846247344,0.00357685,3216.5,3215.6,0.142048]
[1768846247545,0.94434142,3216.4,3215.6,0.142048]
[1768846247746,0.94434142,3216.3,3215.6,0.142048]
[1768846247946,0.00357685,3216.5,3215.6,0.142048]
[1768846248147,0.94434079,3216.4,3215.6,0.142048]
[1768846248350,0.94434079,3216.3,3215.6,0.142048]
[1768846248553,0.00357685,3216.5,3215.6,0.142048]
[1768846248753,0.9443217,3216.4,3215.6,0.142048]
[1768846248953,0.9443217,3216.3,3215.6,0.142048]
[1768846249253,0.00357685,3216.5,3215.6,0.142048]
[1768846249450,0.94483698,3216.4,3215.6,0.142048]
[1768846249654,0.00357685,3216.5,3215.6,0.142048]
[1768846249856,0.94483422,3216.4,3215.6,0.142048]
[1768846250055,0.00357685,3216.5,3215.6,0.142048]
[1768846250254,0.94483184,3216.4,3215.6,0.142048]
[1768846250460,0.00357685,3216.5,3215.6,0.142048]
[1768846250651,0.94481672,3216.4,3215.6,0.142048]
[1768846250853,0.00357685,3216.5,3215.6,0.142048]
[1768846251054,0.94481712,3216.4,3215.6,0.142048]
[1768846251352,0.00357685,3216.5,3215.6,0.142048]
[1768846251558,0.94479749,3216.4,3215.6,0.142048]
[1768846251761,0.00357685,3216.5,3215.6,0.142048]
[1768846252059,0.94479619,3216.4,3215.6,0.142048]
[1768846252261,0.00357685,3216.5,3215.6,0.142048]
[1768846252461,0.94477653,3216.4,3215.6,0.142048]
[1768846252758,0.00357685,3216.5,3215.6,0.142048]
[1768846252959,0.9447761,3216.4,3215.6,0.142048]
[1768846253160,0.00357685,3216.5,3215.6,0.142048]
[1768846253463,0.94476012,3216.4,3215.6,0.142048]
[1768846253657,0.00357685,3216.5,3215.6,0.142048]
[1768846253965,0.00357685,3216.5,3215.9,0.13597183]
[1768846256461,0.00357685,3216.5,3216.0,0.13597183]
[1768846265570,1.67027093,3217.3,3216.1,0.13597183]
[1768846265770,0.94393553,3217.2,3216.1,0.13597183]
[1768846265972,0.94393553,3217.1,3216.1,0.13597183]
[1768846266159,0.94393553,3217.0,3216.1,0.13597183]
[1768846266463,0.94393553,3216.9,3216.1,0.13597183]
[1768846266766,0.00273206,3217.0,3216.1,0.13597183]
[1768846266970,0.94394111,3216.9,3216.1,0.13597183]
[1768846267165,0.94394111,3216.8,3216.1,0.13597183]
[1768846267359,0.00273206,3217.0,3216.1,0.13597183]
[1768846267566,0.9439219,3216.9,3216.1,0.13597183]
[1768846267767,0.9439219,3216.8,3216.1,0.13597183]
[1768846267966,0.00273206,3217.0,3216.1,0.13597183]
[1768846268165,0.9439219,3216.9,3216.1,0.13597183]
[1768846268365,0.9439219,3216.8,3216.1,0.13597183]
[1768846268566,0.00273206,3217.0,3216.1,0.13597183]
[1768846268773,0.94388873,3216.9,3216.1,0.13597183]
[1768846268969,0.94388873,3216.8,3216.1,0.13597183]
[1768846269172,0.00273206,3217.0,3216.1,0.13597183]
[1768846269373,0.94390191,3216.9,3216.1,0.13597183]
[1768846269567,0.94390191,3216.8,3216.1,0.13597183]
[1768846269768,0.00273206,3217.0,3216.1,0.13597183]
[1768846269967,0.9438945,3216.9,3216.1,0.13597183]
[1768846270170,0.9438945,3216.8,3216.1,0.13597183]
[1768846270371,0.00273206,3217.0,3216.1,0.13597183]
[1768846270571,0.94391058,3216.9,3216.1,0.13597183]
[1768846270872,0.94391058,3216.8,3216.1,0.13597183]
[1768846271065,0.00273206,3217.0,3216.1,0.13597183]
[1768846271264,0.94388516,3216.9,3216.1,0.13597183]
[1768846271471,0.94388516,3216.8,3216.1,0.13597183]
[1768846271677,0.00273206,3217.0,3216.1,0.13597183]
[1768846271873,0.94388437,3216.9,3216.1,0.13597183]
[1768846272074,0.94388437,3216.8,3216.1,0.13597183]
[1768846272262,0.00273206,3217.0,3216.1,0.13597183]
[1768846272466,0.94389362,3216.9,3216.1,0.13597183]
[1768846272766,0.94389362,3216.8,3216.1,0.13597183]
[1768846272966,0.00273206,3217.0,3216.1,0.13597183]
[1768846273169,0.94389299,3216.9,3216.1,0.13597183]
[1768846273372,0.94389299,3216.8,3216.1,0.13597183]
[1768846273573,0.00273206,3217.0,3216.1,0.13597183]
[1768846273774,0.94388891,3216.9,3216.1,0.13597183]
[1768846273968,0.94388891,3216.8,3216.1,0.13597183]
[1768846274170,0.00273206,3217.0,3216.1,0.13597183]
[1768846274375,0.94393625,3216.9,3216.1,0.13597183]
[1768846274675,0.94393625,3216.8,3216.1,0.13597183]
[1768846274874,0.00273206,3217.0,3216.1,0.13597183]
[1768846275074,0.94393862,3216.9,3216.1,0.13597183]
[1768846275275,0.94393862,3216.8,3216.1,0.13597183]
[1768846275473,0.00273206,3217.0,3216.1,0.13597183]
[1768846275675,0.94394465,3216.9,3216.1,0.13597183]
[1768846275867,0.94394465,3216.8,3216.1,0.13597183]
[1768846276068,0.00273206,3217.0,3216.1,0.13597183]
[1768846276377,0.94394304,3216.9,3216.1,0.13597183]
[1768846276570,0.94394304,3216.8,3216.1,0.13597183]
[1768846276773,0.00273206,3217.0,3216.1,0.13597183]
[1768846277070,0.94397005,3216.9,3216.1,0.13597183]
[1768846277275,0.94397005,3216.8,3216.1,0.13597183]
[1768846277472,0.00273206,3217.0,3216.1,0.13597183]
[1768846277664,0.94400856,3216.9,3216.1,0.13597183]
[1768846277869,0.94400856,3216.8,3216.1,0.13597183]
[1768846278169,0.00273206,3217.0,3216.1,0.13597183]
[1768846278373,0.9440635,3216.9,3216.1,0.13597183]
[1768846278574,0.9440635,3216.8,3216.1,0.13597183]
[1768846278772,0.00273206,3217.0,3216.1,0.13597183]
[1768846279777,0.00273206,3217.0,3216.1,0.29152183]
[1768846279976,0.00273206,3217.0,3216.2,0.13597183]
[1768846282481,1.67027093,3217.7,3216.5,0.13597183]
[1768846282665,0.94445193,3217.6,3216.5,0.13597183]
[1768846282864,0.94445193,3217.5,3216.5,0.29150183]
[1768846283066,0.94445193,3217.4,3216.5,0.29150183]
[1768846283277,0.94445193,3217.3,3216.5,0.29150183]
[1768846283478,3.40627093,3217.9,3216.5,0.29150183]
[1768846283681,0.00306699,3217.3,3216.5,0.29375253]
[1768846291590,0.00306699,3217.3,3216.6,0.13992228]
[1768846309198,0.94426903,3217.2,3216.6,0.13992228]
[1768846309400,1.28966479,3217.1,3216.6,0.13992228]
[1768846311601,1.28966479,3217.1,3216.5,0.0022507]
[1768846311899,1.28966479,3217.2,3216.5,0.0022507]
[1768846312098,0.94313196,3217.1,3216.5,0.0022507]
[1768846312301,1.28966479,3217.2,3216.5,0.0022507]
[1768846312602,0.94325214,3217.1,3216.5,0.0022507]
[1768846312899,1.28966479,3217.2,3216.5,0.0022507]
[1768846313102,0.94325304,3217.1,3216.5,0.0022507]
[1768846313301,1.28966479,3217.2,3216.5,0.0022507]
[1768846313494,0.94322872,3217.1,3216.2,0.13467564]
[1768846313694,1.28966479,3217.2,3216.2,0.13467564]
[1768846313896,0.94323511,3217.1,3216.2,0.13467564]
[1768846314098,3.02466479,3217.2,3216.2,0.13467564]
[1768846314304,0.94319971,3217.1,3216.2,0.13467564]
[1768846314509,3.02466479,3217.2,3216.2,0.13701155]
[1768846314709,0.94319907,3217.1,3216.2,0.13701155]
[1768846314910,1.28966479,3217.2,3216.2,0.13701155]
[1768846315209,0.94320048,3217.1,3216.2,0.13701155]
[1768846315397,1.28966479,3217.2,3216.2,0.13701155]
[1768846315601,0.94319943,3217.1,3216.2,0.13701155]
[1768846315804,1.28966479,3217.2,3216.2,0.13701155]
[1768846316008,0.94319946,3217.1,3216.2,0.13701155]
[1768846316306,1.28966479,3217.2,3216.2,0.13701155]
[1768846316506,0.94317729,3217.1,3216.2,0.13701155]
[1768846316703,1.28966479,3217.2,3216.2,0.13701155]
[1768846316901,0.94317819,3217.1,3216.2,0.13701155]
[1768846317105,1.28966479,3217.2,3216.2,0.13701155]
[1768846317307,0.9431612,3217.1,3216.2,0.13701155]
[1768846317606,1.28966479,3217.2,3216.2,0.13701155]
[1768846317807,0.94315926,3217.1,3216.2,0.13701155]
[1768846318006,1.28966479,3217.2,3216.2,0.13701155]
[1768846318007,0.94315926,3217.0,3216.2,0.13701155]
[1768846318207,1.28966479,3217.2,3216.2,0.13701155]
[1768846318405,0.94291937,3217.1,3216.2,0.13701155]
[1768846318610,2.23258416,3217.0,3216.2,0.13701155]
[1768846318909,1.28966479,3217.0,3216.2,0.13701155]
[1768846320518,1.28966479,3216.8,3216.2,0.00233591]
[1768846320720,1.28966479,3216.8,3215.8,0.13040851]
[1768846321619,1.28966479,3216.8,3215.8,0.13321244]
[1768846324523,1.28966479,3216.6,3215.8,0.13321244]
[1768846324711,1.28966479,3216.4,3215.8,0.00280393]
[1768846324917,1.28966479,3216.2,3215.4,0.13040851]
[1768846325117,1.28966479,3216.4,3215.4,0.13040851]
[1768846325923,1.28966479,3216.4,3215.4,0.13405696]
[1768846327419,1.28966479,3216.2,3215.4,0.13405696]
[1768846329925,0.00100094,3216.8,3215.4,0.00364845]
[1768846330124,1.28966479,3215.8,3214.9,0.13040851]
[1768846331023,1.28966479,3215.8,3214.9,0.00255091]
[1768846336435,1.28966479,3216.0,3214.9,0.00255091]
[1768846336626,1.736,3215.9,3214.9,0.00255091]
[1768846336931,1.28966479,3216.6,3215.2,0.13040851]
[1768846337131,1.28966479,3216.4,3215.2,0.13040851]
[1768846337333,0.93752527,3216.3,3215.2,0.13040851]
[1768846337734,1.28966479,3216.4,3215.2,0.13040851]
[1768846341230,1.736,3216.5,3215.0,0.1556]
[1768846341432,1.28966479,3216.1,3215.0,0.1556]
[1768846342445,1.736,3216.5,3215.0,0.1556]
[1768846342735,1.28966479,3216.3,3215.0,0.28600851]
[1768846342937,1.28966479,3216.3,3215.1,0.13914938]
[1768846344735,1.28966479,3215.9,3215.0,0.1556]
[1768846345035,1.28966479,3215.6,3214.9,0.00255091]
[1768846345439,1.28966479,3215.8,3214.9,0.00255091]
[1768846345752,1.28966479,3215.7,3214.9,0.00255091]
[1768846348636,1.28966479,3215.9,3214.9,0.00255091]
[1768846350944,1.736,3216.0,3214.9,0.00255091]
[1768846351135,0.94504806,3215.9,3214.9,0.00255091]
[1768846351336,1.736,3216.0,3214.9,0.00255091]
[1768846351537,0.94505904,3215.9,3214.9,0.00255091]
[1768846351739,1.736,3216.0,3214.9,0.00255091]
[1768846351940,0.94525142,3215.9,3214.9,0.00255091]
[1768846352139,1.736,3215.9,3214.9,0.00255091]
[1768846353250,0.94582778,3215.8,3214.9,0.00255091]
[1768846353546,1.736,3215.9,3214.9,0.00255091]
[1768846353846,0.94582799,3215.8,3214.9,0.00255091]
[1768846354043,1.736,3215.9,3214.9,0.00255091]
[1768846354242,0.94582694,3215.8,3214.9,0.00255091]
[1768846354447,1.736,3215.9,3214.9,0.00255091]
[1768846354647,0.94625488,3215.8,3214.9,0.00255091]
[1768846354846,1.736,3215.9,3214.9,0.00255091]
[1768846355037,0.94625702,3215.8,3214.9,0.00255091]
[1768846355233,1.736,3215.9,3214.9,0.00255091]
[1768846355440,0.94643794,3215.8,3214.9,0.00255091]
[1768846355634,1.736,3215.9,3214.9,0.00255091]
[1768846355932,0.9464389,3215.8,3214.9,0.00255091]
[1768846356138,1.736,3215.9,3214.9,0.00255091]
[1768846356335,0.94643715,3215.8,3214.9,0.00255091]
[1768846356632,0.94643715,3215.7,3214.9,0.00255091]
[1768846356837,1.736,3215.9,3214.9,0.00255091]
[1768846357038,0.94666868,3215.8,3214.9,0.00255091]
[1768846357246,0.9469392,3215.7,3214.9,0.00255091]
[1768846357443,1.736,3215.9,3214.9,0.00255091]
[1768846357750,0.94693956,3215.8,3214.9,0.00255091]
[1768846357944,0.94693956,3215.7,3214.9,0.00255091]
[1768846358155,1.736,3215.9,3214.9,0.00255091]
[1768846358444,0.94715531,3215.8,3214.9,0.00255091]
[1768846358632,0.94715531,3215.7,3214.9,0.00255091]
[1768846358841,1.736,3215.9,3214.9,0.00255091]
[1768846359044,0.94715156,3215.8,3214.9,0.00255091]
[1768846359243,0.94715156,3215.7,3214.9,0.00255091]
[1768846359442,1.736,3215.9,3214.9,0.00255091]
[1768846359642,0.94742643,3215.8,3214.9,0.00255091]
[1768846359844,0.94742643,3215.7,3214.9,0.00255091]
[1768846360044,1.736,3215.9,3214.9,0.00255091]
[1768846360246,0.94742644,3215.8,3214.9,0.00255091]
[1768846360543,0.94742644,3215.7,3214.9,0.00255091]
[1768846360750,1.736,3215.9,3214.9,0.00255091]
[1768846360945,0.94743347,3215.8,3214.9,0.00255091]
[1768846361146,0.94743347,3215.7,3214.9,0.00255091]
[1768846361353,1.736,3215.9,3214.9,0.00255091]
[1768846361545,0.94744978,3215.8,3214.9,0.00255091]
[1768846361744,0.94744978,3215.7,3214.9,0.00255091]
[1768846361951,1.736,3215.9,3214.9,0.00255091]
[1768846362250,0.94743823,3215.8,3214.9,0.00255091]
[1768846362545,0.94743823,3215.7,3214.9,0.00255091]
[1768846362753,0.94743823,3215.6,3214.6,0.15562]
[1768846363050,0.94743823,3215.5,3214.6,0.15562]
[1768846363246,0.94743823,3215.4,3214.6,0.15562]
[1768846363549,1.736,3215.9,3214.6,0.15562]
[1768846363749,0.94730614,3215.8,3214.6,0.15919775]
[1768846363951,0.94730614,3215.7,3214.6,0.15919775]
[1768846364152,0.94730614,3215.6,3214.6,0.15919775]
[1768846364449,0.94730614,3215.5,3214.6,0.15919775]
[1768846364652,0.94730614,3215.4,3214.6,0.15919775]
[1768846364955,1.736,3215.9,3214.6,0.00357775]
[1768846365254,0.94723945,3215.8,3214.6,0.00357775]
[1768846365441,0.94723945,3215.7,3214.6,0.00357775]
[1768846365641,0.94723945,3215.6,3214.6,0.00357775]
[1768846365837,0.94723945,3215.5,3214.6,0.00357775]
[1768846366051,0.94723945,3215.4,3214.6,0.00357775]
[1768846366243,1.89156,3215.9,3214.6,0.00357775]
[1768846366446,0.94707495,3215.8,3214.6,0.00357775]
[1768846366654,0.94707495,3215.7,3214.6,0.00357775]
[1768846366846,0.94707495,3215.6,3214.6,0.00357775]
[1768846367046,0.94707495,3215.5,3214.6,0.00357775]
[1768846367245,0.94707495,3215.4,3214.6,0.00357775]
[1768846367445,0.00081589,3215.8,3214.6,0.00357775]
[1768846367739,0.94706018,3215.7,3214.6,0.00357775]
[1768846367944,0.94706018,3215.6,3214.6,0.00357775]
[1768846368144,0.94706018,3215.5,3214.6,0.00357775]
[1768846368344,0.00081589,3215.8,3214.6,0.00357775]
[1768846368545,0.94714224,3215.7,3214.6,0.00357775]
[1768846368746,0.94714224,3215.6,3214.6,0.00357775]
[1768846368947,0.94714224,3215.5,3214.6,0.00357775]
[1768846369146,0.00081589,3215.8,3214.6,0.00357775]
[1768846369355,0.94715695,3215.7,3214.6,0.00357775]
[1768846369551,0.94715695,3215.6,3214.6,0.00357775]
[1768846369751,0.94715695,3215.5,3214.6,0.00357775]
[1768846369950,0.00081589,3215.8,3214.6,0.00357775]
[1768846370154,0.94884474,3215.7,3214.6,0.00357775]
[1768846370354,0.94884474,3215.6,3214.6,0.00357775]
[1768846370655,0.94884474,3215.5,3214.6,0.00357775]
[1768846370856,0.00081589,3215.8,3214.6,0.00357775]
[1768846371154,0.94896928,3215.7,3214.6,0.00357775]
[1768846371355,0.94896928,3215.6,3214.6,0.00357775]
[1768846371557,0.94896928,3215.5,3214.6,0.00357775]
[1768846371754,0.00081589,3215.8,3214.6,0.00357775]
[1768846372059,0.94905242,3215.7,3214.6,0.00357775]
[1768846372360,0.94905242,3215.6,3214.6,0.00357775]
[1768846372654,0.94905242,3215.5,3214.6,0.00357775]
[1768846372858,0.94905242,3215.4,3214.6,0.00357775]
[1768846373055,0.00081589,3215.8,3214.6,0.00357775]
[1768846373255,0.94912784,3215.7,3214.6,0.00357775]
[1768846373456,0.94912784,3215.6,3214.6,0.00357775]
[1768846373659,0.94912784,3215.5,3214.6,0.00357775]
[1768846373958,0.94912784,3215.4,3214.6,0.00357775]
[1768846374163,0.94912784,3215.3,3214.6,0.00357775]
[1768846374350,1.67108682,3215.8,3214.6,0.00357775]
[1768846374550,0.94924317,3215.7,3214.6,0.00357775]
[1768846374759,0.94924317,3215.6,3214.6,0.00357775]
[1768846374958,0.94924317,3215.5,3214.6,0.00357775]
[1768846375159,0.94924317,3215.4,3214.6,0.00357775]
[1768846375359,0.94924317,3215.3,3214.6,0.00357775]
[1768846375560,1.67108682,3215.8,3214.6,0.00357775]
[1768846375761,0.94923934,3215.7,3214.6,0.00357775]
[1768846376055,0.94923934,3215.6,3214.6,0.00357775]
[1768846376260,0.94923934,3215.5,3214.6,0.00357775]
[1768846376461,0.94923934,3215.4,3214.6,0.00357775]
[1768846376763,0.94923934,3215.3,3214.6,0.00357775]
[1768846376956,0.00081589,3215.8,3214.6,0.00357775]
[1768846377259,0.00280833,3215.7,3214.6,0.00357775]
[1768846377462,0.95213535,3215.6,3214.2,0.15564]
[1768846377759,0.94932702,3215.5,3214.2,0.15564]
[1768846378359,0.94932702,3215.5,3214.2,0.15789605]
[1768846381156,0.94932702,3215.5,3214.2,0.29651094]
[1768846381663,2.68532702,3215.4,3214.2,0.29651094]
[1768846381866,0.94932702,3215.3,3214.2,0.29651094]
[1768846382262,0.15557,3215.8,3214.3,0.13861489]
[1768846382463,2.68557125,3215.7,3214.3,0.13861489]
[1768846382662,0.94957125,3215.6,3214.3,0.13861489]
[1768846384565,1.736,3215.5,3214.3,0.13861489]
[1768846384765,0.94957125,3215.4,3214.3,0.13861489]
[1768846385067,0.94957125,3215.4,3214.2,0.15789605]
[1768846385365,1.29102545,3215.2,3214.2,0.00225605]
[1768846385567,0.94957125,3215.1,3214.2,0.00225605]
[1768846385769,0.94957125,3215.0,3214.2,0.00225605]
[1768846385962,0.94957125,3214.9,3214.2,0.00225605]
[1768846386169,0.00310942,3215.0,3214.2,0.00225605]
[1768846386463,0.94935389,3214.9,3214.2,0.00225605]
[1768846386662,0.00310942,3215.0,3214.2,0.00225605]
[1768846386864,0.94935499,3214.9,3214.2,0.00225605]
[1768846387158,0.00310942,3215.0,3214.2,0.00225605]
[1768846395871,0.94948546,3214.9,3214.2,0.00225605]
[1768846396062,0.00310942,3215.0,3214.2,0.00225605]
[1768846396262,0.94956527,3214.9,3214.2,0.00225605]
[1768846396470,0.00310942,3215.0,3214.2,0.00225605]
[1768846396670,0.94964489,3214.9,3214.2,0.00225605]
[1768846396872,0.00310942,3215.0,3214.2,0.00225605]
[1768846397063,0.94964878,3214.9,3214.2,0.00225605]
[1768846397269,0.00310942,3215.0,3214.2,0.00225605]
[1768846397572,0.94964694,3214.9,3214.2,0.00225605]
[1768846397774,0.00310942,3215.0,3214.2,0.00225605]
[1768846397974,0.94964692,3214.9,3214.2,0.00225605]
[1768846398277,0.00310942,3215.0,3214.2,0.00225605]
[1768846398473,0.94965827,3214.9,3214.2,0.00225605]
[1768846398675,0.00310942,3215.0,3214.2,0.00225605]
[1768846398877,0.94965498,3214.9,3214.2,0.00225605]
[1768846399173,0.00310942,3215.0,3214.2,0.00225605]
[1768846399374,0.94968335,3214.9,3214.2,0.00225605]
[1768846399674,0.00310942,3215.0,3214.2,0.00225605]
[1768846400277,0.94837698,3214.9,3214.2,0.00225605]
[1768846400475,0.00310942,3215.0,3214.2,0.00225605]
[1768846401270,0.94850802,3214.9,3214.2,0.00225605]
[1768846401477,0.00310942,3215.0,3214.2,0.00225605]
[1768846401679,0.94851349,3214.9,3214.2,0.00225605]
[1768846401877,0.00310942,3215.0,3214.2,0.00225605]
[1768846402078,0.94850994,3214.9,3214.2,0.00225605]
[1768846402278,0.00310942,3215.0,3214.2,0.00225605]
[1768846402478,0.94858783,3214.9,3214.2,0.00225605]
[1768846402776,0.00310942,3215.0,3214.2,0.00225605]
[1768846402977,0.94858935,3214.9,3214.2,0.00225605]
[1768846403182,0.00310942,3215.0,3214.2,0.00225605]
[1768846403481,0.9486916,3214.9,3214.2,0.00225605]
[1768846403679,0.00310942,3215.0,3214.2,0.00225605]
[1768846403880,0.94869079,3214.9,3214.2,0.00225605]
[1768846404179,0.00310942,3215.0,3214.2,0.00225605]
[1768846404380,0.94873058,3214.9,3214.2,0.00225605]
[1768846404677,0.00310942,3215.0,3214.2,0.00225605]
[1768846404878,0.94873057,3214.9,3214.2,0.00225605]
[1768846405077,0.00310942,3215.0,3214.2,0.00225605]
[1768846405277,0.94874597,3214.9,3214.2,0.00225605]
[1768846405478,0.00310942,3215.0,3214.2,0.00225605]
[1768846405682,0.9487809,3214.9,3214.2,0.00225605]
[1768846405875,0.00310942,3215.0,3214.2,0.00225605]
[1768846406074,0.94877668,3214.9,3214.2,0.00225605]
[1768846406383,0.00310942,3215.0,3214.2,0.00225605]
[1768846406575,0.94884978,3214.9,3214.2,0.00225605]
[1768846406882,0.00310942,3215.0,3214.2,0.13263631]
[1768846407083,0.94885056,3214.9,3214.2,0.13263631]
[1768846407275,0.00310942,3215.0,3214.2,0.13263631]
[1768846407477,0.94894709,3214.9,3214.2,0.00225605]
[1768846407678,0.00310942,3215.0,3214.2,0.00225605]
[1768846407874,0.94895015,3214.9,3214.2,0.00225605]
[1768846408081,0.00310942,3215.0,3214.2,0.00225605]
[1768846408272,0.94896212,3214.9,3214.2,0.00225605]
[1768846408468,0.94896212,3214.9,3213.8,0.13038026]
[1768846408469,0.94893101,3214.8,3213.8,0.13038026]
[1768846408672,0.00310942,3215.0,3213.8,0.13038026]
[1768846408872,0.94893092,3214.9,3213.8,0.13038026]
[1768846409075,0.94893092,3214.8,3213.8,0.13038026]
[1768846409275,0.00310942,3215.0,3213.8,0.13038026]
[1768846409572,0.94894226,3214.9,3213.8,0.13358452]
[1768846409776,0.94894226,3214.8,3213.8,0.13358452]
[1768846409974,0.00310942,3215.0,3213.8,0.13358452]
[1768846410184,0.94894902,3214.9,3213.8,0.13358452]
[1768846410380,0.94894902,3214.8,3213.8,0.13358452]
[1768846410575,0.00310942,3215.0,3213.8,0.13358452]
[1768846410775,0.94892802,3214.9,3213.8,0.13358452]
[1768846410981,0.94892802,3214.8,3213.8,0.13358452]
[1768846411181,0.00310942,3215.0,3213.8,0.13358452]
[1768846411383,0.94893261,3214.9,3213.8,0.13358452]
[1768846411583,0.94893261,3214.8,3213.8,0.13358452]
[1768846411884,0.00310942,3215.0,3213.8,0.13358452]
[1768846412082,0.94899296,3214.9,3213.8,0.13358452]
[1768846412274,0.94899296,3214.8,3213.8,0.13358452]
[1768846412477,0.00310942,3215.0,3213.8,0.13358452]